Workbook

Sheet MPPT
G2: =CHOOSE($J$3,INDEX(tab_LANGUAGE[[ENGLISH]:[PORTUGUÊS]],67,_ENGLISH),INDEX(tab_LANGUAGE[[ENGLISH]:[PORTUGUÊS]],67,_DUTCH),INDEX(tab_LANGUAGE[[ENGLISH]:[PORTUGUÊS]],67,_SLOVENSKY),INDEX(tab_LANGUAGE[[ENGLISH]:[PORTUGUÊS]],67,_DEUTSCH),INDEX(tab_LANGUAGE[[ENGLISH]:[PORTUGUÊS]],67,_FRANCAIS),INDEX(tab_LANGUAGE[[ENGLISH]:[PORTUGUÊS]],67,_PORTUGUÊS)) -> Regulátor nabíjania Blue- & SmartSolar MPPT
D3: =IF(H24="N.A.","",IF('Calculation table'!C49>1.3,CHOOSE($J$3,INDEX(tab_LANGUAGE[[ENGLISH]:[PORTUGUÊS]],39,_ENGLISH),INDEX(tab_LANGUAGE[[ENGLISH]:[PORTUGUÊS]],39,_DUTCH),INDEX(tab_LANGUAGE[[ENGLISH]:[PORTUGUÊS]],39,_SLOVENSKY),INDEX(tab_LANGUAGE[[ENGLISH]:[PORTUGUÊS]],39,_DEUTSCH),INDEX(tab_LANGUAGE[[ENGLISH]:[PORTUGUÊS]],39,_FRANCAIS),INDEX(tab_LANGUAGE[[ENGLISH]:[PORTUGUÊS]],39,_PORTUGUÊS)),"")) ->  | J3: 3 | K3: =IF(H25="N.A.","",IF('Calculation table'!E50=TRUE,CHOOSE($J$3,INDEX(tab_LANGUAGE[[ENGLISH]:[PORTUGUÊS]],49,_ENGLISH),INDEX(tab_LANGUAGE[[ENGLISH]:[PORTUGUÊS]],49,_DUTCH),INDEX(tab_LANGUAGE[[ENGLISH]:[PORTUGUÊS]],49,_SLOVENSKY),INDEX(tab_LANGUAGE[[ENGLISH]:[PORTUGUÊS]],49,_DEUTSCH),INDEX(tab_LANGUAGE[[ENGLISH]:[PORTUGUÊS]],49,_FRANCAIS),INDEX(tab_LANGUAGE[[ENGLISH]:[PORTUGUÊS]],49,_PORTUGUÊS)),"")) -> 
D4: 21 | F4: =CHOOSE($J$3,INDEX(tab_LANGUAGE[[ENGLISH]:[PORTUGUÊS]],1,_ENGLISH),INDEX(tab_LANGUAGE[[ENGLISH]:[PORTUGUÊS]],1,_DUTCH),INDEX(tab_LANGUAGE[[ENGLISH]:[PORTUGUÊS]],1,_SLOVENSKY),INDEX(tab_LANGUAGE[[ENGLISH]:[PORTUGUÊS]],1,_DEUTSCH),INDEX(tab_LANGUAGE[[ENGLISH]:[PORTUGUÊS]],1,_FRANCAIS),INDEX(tab_LANGUAGE[[ENGLISH]:[PORTUGUÊS]],1,_PORTUGUÊS)) -> Modul: | M4: =CHOOSE($J$3,INDEX(tab_LANGUAGE[[ENGLISH]:[PORTUGUÊS]],9,_ENGLISH),INDEX(tab_LANGUAGE[[ENGLISH]:[PORTUGUÊS]],9,_DUTCH),INDEX(tab_LANGUAGE[[ENGLISH]:[PORTUGUÊS]],9,_SLOVENSKY),INDEX(tab_LANGUAGE[[ENGLISH]:[PORTUGUÊS]],9,_DEUTSCH),INDEX(tab_LANGUAGE[[ENGLISH]:[PORTUGUÊS]],9,_FRANCAIS),INDEX(tab_LANGUAGE[[ENGLISH]:[PORTUGUÊS]],9,_PORTUGUÊS)) -> Regulátor:
D5: =INDEX(tab_MODUL[Názov],_Modul,1) -> CanadianSolar HiKu PERC CS3W 455MS | K5: =INDEX(Regulator!C2:C17,_Regulator,1) -> SmartSolar MPPT 250/100 Tr/Tr VE.Can/MC4
F7: =CHOOSE($J$3,INDEX(tab_LANGUAGE[[ENGLISH]:[PORTUGUÊS]],64,_ENGLISH),INDEX(tab_LANGUAGE[[ENGLISH]:[PORTUGUÊS]],64,_DUTCH),INDEX(tab_LANGUAGE[[ENGLISH]:[PORTUGUÊS]],64,_SLOVENSKY),INDEX(tab_LANGUAGE[[ENGLISH]:[PORTUGUÊS]],64,_DEUTSCH),INDEX(tab_LANGUAGE[[ENGLISH]:[PORTUGUÊS]],64,_FRANCAIS),INDEX(tab_LANGUAGE[[ENGLISH]:[PORTUGUÊS]],64,_PORTUGUÊS)) -> Počet modulov | K7: =CHOOSE($J$3,INDEX(tab_LANGUAGE[[ENGLISH]:[PORTUGUÊS]],10,_ENGLISH),INDEX(tab_LANGUAGE[[ENGLISH]:[PORTUGUÊS]],10,_DUTCH),INDEX(tab_LANGUAGE[[ENGLISH]:[PORTUGUÊS]],10,_SLOVENSKY),INDEX(tab_LANGUAGE[[ENGLISH]:[PORTUGUÊS]],10,_DEUTSCH),INDEX(tab_LANGUAGE[[ENGLISH]:[PORTUGUÊS]],10,_FRANCAIS),INDEX(tab_LANGUAGE[[ENGLISH]:[PORTUGUÊS]],10,_PORTUGUÊS)) -> Systémové napätie: | M7: =INDEX(Q7:Q10,K8,1) -> 48 | P7: 2.5 | Q7: 12
K8: 4 | P8: 4 | Q8: 24
D9: =CHOOSE($J$3,INDEX(tab_LANGUAGE[[ENGLISH]:[PORTUGUÊS]],2,_ENGLISH),INDEX(tab_LANGUAGE[[ENGLISH]:[PORTUGUÊS]],2,_DUTCH),INDEX(tab_LANGUAGE[[ENGLISH]:[PORTUGUÊS]],2,_SLOVENSKY),INDEX(tab_LANGUAGE[[ENGLISH]:[PORTUGUÊS]],2,_DEUTSCH),INDEX(tab_LANGUAGE[[ENGLISH]:[PORTUGUÊS]],2,_FRANCAIS),INDEX(tab_LANGUAGE[[ENGLISH]:[PORTUGUÊS]],2,_PORTUGUÊS)) -> Do série: | E9: 3 | G9: =CHOOSE($J$3,INDEX(tab_LANGUAGE[[ENGLISH]:[PORTUGUÊS]],3,_ENGLISH),INDEX(tab_LANGUAGE[[ENGLISH]:[PORTUGUÊS]],3,_DUTCH),INDEX(tab_LANGUAGE[[ENGLISH]:[PORTUGUÊS]],3,_SLOVENSKY),INDEX(tab_LANGUAGE[[ENGLISH]:[PORTUGUÊS]],3,_DEUTSCH),INDEX(tab_LANGUAGE[[ENGLISH]:[PORTUGUÊS]],3,_FRANCAIS),INDEX(tab_LANGUAGE[[ENGLISH]:[PORTUGUÊS]],3,_PORTUGUÊS)) -> Paralelne: | H9: 2 | K9: =CHOOSE($J$3,INDEX(tab_LANGUAGE[[ENGLISH]:[PORTUGUÊS]],31,_ENGLISH),INDEX(tab_LANGUAGE[[ENGLISH]:[PORTUGUÊS]],31,_DUTCH),INDEX(tab_LANGUAGE[[ENGLISH]:[PORTUGUÊS]],31,_SLOVENSKY),INDEX(tab_LANGUAGE[[ENGLISH]:[PORTUGUÊS]],31,_DEUTSCH),INDEX(tab_LANGUAGE[[ENGLISH]:[PORTUGUÊS]],31,_FRANCAIS),INDEX(tab_LANGUAGE[[ENGLISH]:[PORTUGUÊS]],31,_PORTUGUÊS)) -> Dĺžka kábla, modul k MPPT * | P9: 6 | Q9: 36
K10: 10 | P10: 10 | Q10: 48
D11: =CHOOSE($J$3,INDEX(tab_LANGUAGE[[ENGLISH]:[PORTUGUÊS]],4,_ENGLISH),INDEX(tab_LANGUAGE[[ENGLISH]:[PORTUGUÊS]],4,_DUTCH),INDEX(tab_LANGUAGE[[ENGLISH]:[PORTUGUÊS]],4,_SLOVENSKY),INDEX(tab_LANGUAGE[[ENGLISH]:[PORTUGUÊS]],4,_DEUTSCH),INDEX(tab_LANGUAGE[[ENGLISH]:[PORTUGUÊS]],4,_FRANCAIS),INDEX(tab_LANGUAGE[[ENGLISH]:[PORTUGUÊS]],4,_PORTUGUÊS)) -> Celkový FV výkon @STC: | G11: =_Serial*_Paralel*INDEX(_Moduls,_Modul,3) -> 2730 | H11: =CHOOSE($J$3,INDEX(tab_LANGUAGE[[ENGLISH]:[PORTUGUÊS]],5,_ENGLISH),INDEX(tab_LANGUAGE[[ENGLISH]:[PORTUGUÊS]],5,_DUTCH),INDEX(tab_LANGUAGE[[ENGLISH]:[PORTUGUÊS]],5,_SLOVENSKY),INDEX(tab_LANGUAGE[[ENGLISH]:[PORTUGUÊS]],5,_DEUTSCH),INDEX(tab_LANGUAGE[[ENGLISH]:[PORTUGUÊS]],5,_FRANCAIS),INDEX(tab_LANGUAGE[[ENGLISH]:[PORTUGUÊS]],5,_PORTUGUÊS)) -> Wp | P11: 16
P12: 25
F13: =CHOOSE($J$3,INDEX(tab_LANGUAGE[[ENGLISH]:[PORTUGUÊS]],6,_ENGLISH),INDEX(tab_LANGUAGE[[ENGLISH]:[PORTUGUÊS]],6,_DUTCH),INDEX(tab_LANGUAGE[[ENGLISH]:[PORTUGUÊS]],6,_SLOVENSKY),INDEX(tab_LANGUAGE[[ENGLISH]:[PORTUGUÊS]],6,_DEUTSCH),INDEX(tab_LANGUAGE[[ENGLISH]:[PORTUGUÊS]],6,_FRANCAIS),INDEX(tab_LANGUAGE[[ENGLISH]:[PORTUGUÊS]],6,_PORTUGUÊS)) -> Teplota modulu: | K13: =CHOOSE($J$3,INDEX(tab_LANGUAGE[[ENGLISH]:[PORTUGUÊS]],32,_ENGLISH),INDEX(tab_LANGUAGE[[ENGLISH]:[PORTUGUÊS]],32,_DUTCH),INDEX(tab_LANGUAGE[[ENGLISH]:[PORTUGUÊS]],32,_SLOVENSKY),INDEX(tab_LANGUAGE[[ENGLISH]:[PORTUGUÊS]],32,_DEUTSCH),INDEX(tab_LANGUAGE[[ENGLISH]:[PORTUGUÊS]],32,_FRANCAIS),INDEX(tab_LANGUAGE[[ENGLISH]:[PORTUGUÊS]],32,_PORTUGUÊS)) -> Prierez: | P13: 35
F14: °C | G14: °F | K14: =INDEX($P$7:$P$13,$K$15,1) -> 6
K15: 3
D16: =CHOOSE($J$3,INDEX(tab_LANGUAGE[[ENGLISH]:[PORTUGUÊS]],7,_ENGLISH),INDEX(tab_LANGUAGE[[ENGLISH]:[PORTUGUÊS]],7,_DUTCH),INDEX(tab_LANGUAGE[[ENGLISH]:[PORTUGUÊS]],7,_SLOVENSKY),INDEX(tab_LANGUAGE[[ENGLISH]:[PORTUGUÊS]],7,_DEUTSCH),INDEX(tab_LANGUAGE[[ENGLISH]:[PORTUGUÊS]],7,_FRANCAIS),INDEX(tab_LANGUAGE[[ENGLISH]:[PORTUGUÊS]],7,_PORTUGUÊS)) -> Min. | E16: =IF(_Temp=1, E17-40&" °C", ((E17-40)*9/5)+32& " °F") -> -15 °C | G16: =CHOOSE($J$3,INDEX(tab_LANGUAGE[[ENGLISH]:[PORTUGUÊS]],8,_ENGLISH),INDEX(tab_LANGUAGE[[ENGLISH]:[PORTUGUÊS]],8,_DUTCH),INDEX(tab_LANGUAGE[[ENGLISH]:[PORTUGUÊS]],8,_SLOVENSKY),INDEX(tab_LANGUAGE[[ENGLISH]:[PORTUGUÊS]],8,_DEUTSCH),INDEX(tab_LANGUAGE[[ENGLISH]:[PORTUGUÊS]],8,_FRANCAIS),INDEX(tab_LANGUAGE[[ENGLISH]:[PORTUGUÊS]],8,_PORTUGUÊS)) -> Max. | H16: =IF(_Temp=1, H17&" °C", (H17*9/5)+32&" °F") -> 45 °C
D17: 16 | E17: 25 | H17: 45
I18: 1 | Q18: FALSE
D20: =CHOOSE($J$3,INDEX(tab_LANGUAGE[[ENGLISH]:[PORTUGUÊS]],11,_ENGLISH),INDEX(tab_LANGUAGE[[ENGLISH]:[PORTUGUÊS]],11,_DUTCH),INDEX(tab_LANGUAGE[[ENGLISH]:[PORTUGUÊS]],11,_SLOVENSKY),INDEX(tab_LANGUAGE[[ENGLISH]:[PORTUGUÊS]],11,_DEUTSCH),INDEX(tab_LANGUAGE[[ENGLISH]:[PORTUGUÊS]],11,_FRANCAIS),INDEX(tab_LANGUAGE[[ENGLISH]:[PORTUGUÊS]],11,_PORTUGUÊS)) -> Max. vstupné napätie | H20: =INDEX(_Regulators,_Regulator,7) -> 250 | K20: =CHOOSE($J$3,INDEX(tab_LANGUAGE[[ENGLISH]:[PORTUGUÊS]],34,_ENGLISH),INDEX(tab_LANGUAGE[[ENGLISH]:[PORTUGUÊS]],34,_DUTCH),INDEX(tab_LANGUAGE[[ENGLISH]:[PORTUGUÊS]],34,_SLOVENSKY),INDEX(tab_LANGUAGE[[ENGLISH]:[PORTUGUÊS]],34,_DEUTSCH),INDEX(tab_LANGUAGE[[ENGLISH]:[PORTUGUÊS]],34,_FRANCAIS),INDEX(tab_LANGUAGE[[ENGLISH]:[PORTUGUÊS]],34,_PORTUGUÊS)) -> Sú solárne moduly pokryté snehom väčšinu obdobia v roku? | Q20: =IF($Q$18=TRUE,IF(J3=6,INDEX(Language!B3:G40,35,6),IF(J3=5,INDEX(Language!B3:F37,35,1),IF(J3=6,INDEX(Language!B3:G40,35,6),IF(J3=4,INDEX(Language!B3:F37,35,2),IF(J3=3,INDEX(Language!B3:F37,35,3),IF(J3=2,INDEX(Language!B3:F37,35,4),INDEX(Language!B3:F37,35,5))))))),IF(J3=6,INDEX(Language!B3:G40,36,6),IF(J3=5,INDEX(Language!B3:F38,36,1),IF(J3=4,INDEX(Language!B3:F38,36,2),IF(J3=3,INDEX(Language!B3:F38,36,3),IF(J3=2,INDEX(Language!B3:F38,36,4),INDEX(Language!B3:F38,36,5))))))) -> Nie
D21: =CHOOSE($J$3,INDEX(tab_LANGUAGE[[ENGLISH]:[PORTUGUÊS]],12,_ENGLISH),INDEX(tab_LANGUAGE[[ENGLISH]:[PORTUGUÊS]],12,_DUTCH),INDEX(tab_LANGUAGE[[ENGLISH]:[PORTUGUÊS]],12,_SLOVENSKY),INDEX(tab_LANGUAGE[[ENGLISH]:[PORTUGUÊS]],12,_DEUTSCH),INDEX(tab_LANGUAGE[[ENGLISH]:[PORTUGUÊS]],12,_FRANCAIS),INDEX(tab_LANGUAGE[[ENGLISH]:[PORTUGUÊS]],12,_PORTUGUÊS)) -> Max. FV napätie @ min. teplota | H21: ='Calculation table'!F30 -> 163.2816
D22: =CHOOSE($J$3,INDEX(tab_LANGUAGE[[ENGLISH]:[PORTUGUÊS]],13,_ENGLISH),INDEX(tab_LANGUAGE[[ENGLISH]:[PORTUGUÊS]],13,_DUTCH),INDEX(tab_LANGUAGE[[ENGLISH]:[PORTUGUÊS]],13,_SLOVENSKY),INDEX(tab_LANGUAGE[[ENGLISH]:[PORTUGUÊS]],13,_DEUTSCH),INDEX(tab_LANGUAGE[[ENGLISH]:[PORTUGUÊS]],13,_FRANCAIS),INDEX(tab_LANGUAGE[[ENGLISH]:[PORTUGUÊS]],13,_PORTUGUÊS)) -> Min. vstupné napätie @ MPP | H22: ='Calculation table'!C20 -> 49 | K22: =CHOOSE($J$3,INDEX(tab_LANGUAGE[[ENGLISH]:[PORTUGUÊS]],19,_ENGLISH),INDEX(tab_LANGUAGE[[ENGLISH]:[PORTUGUÊS]],19,_DUTCH),INDEX(tab_LANGUAGE[[ENGLISH]:[PORTUGUÊS]],19,_SLOVENSKY),INDEX(tab_LANGUAGE[[ENGLISH]:[PORTUGUÊS]],19,_DEUTSCH),INDEX(tab_LANGUAGE[[ENGLISH]:[PORTUGUÊS]],19,_FRANCAIS),INDEX(tab_LANGUAGE[[ENGLISH]:[PORTUGUÊS]],19,_PORTUGUÊS)) -> Príklady lokalít s očakávanými teplotami:
D23: =CHOOSE($J$3,INDEX(tab_LANGUAGE[[ENGLISH]:[PORTUGUÊS]],14,_ENGLISH),INDEX(tab_LANGUAGE[[ENGLISH]:[PORTUGUÊS]],14,_DUTCH),INDEX(tab_LANGUAGE[[ENGLISH]:[PORTUGUÊS]],14,_SLOVENSKY),INDEX(tab_LANGUAGE[[ENGLISH]:[PORTUGUÊS]],14,_DEUTSCH),INDEX(tab_LANGUAGE[[ENGLISH]:[PORTUGUÊS]],14,_FRANCAIS),INDEX(tab_LANGUAGE[[ENGLISH]:[PORTUGUÊS]],14,_PORTUGUÊS)) -> Min. FV napätie @ max. teplota | H23: ='Calculation table'!K37 -> 114.8876568 | K23: =CHOOSE($J$3,INDEX(tab_LANGUAGE[[ENGLISH]:[PORTUGUÊS]],20,_ENGLISH),INDEX(tab_LANGUAGE[[ENGLISH]:[PORTUGUÊS]],20,_DUTCH),INDEX(tab_LANGUAGE[[ENGLISH]:[PORTUGUÊS]],20,_SLOVENSKY),INDEX(tab_LANGUAGE[[ENGLISH]:[PORTUGUÊS]],20,_DEUTSCH),INDEX(tab_LANGUAGE[[ENGLISH]:[PORTUGUÊS]],20,_FRANCAIS),INDEX(tab_LANGUAGE[[ENGLISH]:[PORTUGUÊS]],20,_PORTUGUÊS)) -> Byt na mobilnom dome, po celý rok (slabé vetranie) | P23: =IF(_Temp=1, S23&" °C", ((S23)*9/5)+32&" °F") -> 0 °C | Q23: =IF(_Temp=1, 70&" °C", ((70)*9/5)+32&" °F") -> 70 °C | S23: =IF($Q$18=TRUE,-10,0) -> 0
D24: =CHOOSE($J$3,INDEX(tab_LANGUAGE[[ENGLISH]:[PORTUGUÊS]],15,_ENGLISH),INDEX(tab_LANGUAGE[[ENGLISH]:[PORTUGUÊS]],15,_DUTCH),INDEX(tab_LANGUAGE[[ENGLISH]:[PORTUGUÊS]],15,_SLOVENSKY),INDEX(tab_LANGUAGE[[ENGLISH]:[PORTUGUÊS]],15,_DEUTSCH),INDEX(tab_LANGUAGE[[ENGLISH]:[PORTUGUÊS]],15,_FRANCAIS),INDEX(tab_LANGUAGE[[ENGLISH]:[PORTUGUÊS]],15,_PORTUGUÊS)) -> Max. výstupný prúd | H24: =INDEX(_Regulators,_Regulator,15) -> 100 | K24: =CHOOSE($J$3,INDEX(tab_LANGUAGE[[ENGLISH]:[PORTUGUÊS]],21,_ENGLISH),INDEX(tab_LANGUAGE[[ENGLISH]:[PORTUGUÊS]],21,_DUTCH),INDEX(tab_LANGUAGE[[ENGLISH]:[PORTUGUÊS]],21,_SLOVENSKY),INDEX(tab_LANGUAGE[[ENGLISH]:[PORTUGUÊS]],21,_DEUTSCH),INDEX(tab_LANGUAGE[[ENGLISH]:[PORTUGUÊS]],21,_FRANCAIS),INDEX(tab_LANGUAGE[[ENGLISH]:[PORTUGUÊS]],21,_PORTUGUÊS)) -> Byt na mobilnom dome, len leto (slabé vetranie) | P24: 15 °C | Q24: =IF(_Temp=1, 70&" °C", ((70)*9/5)+32& " °F") -> 70 °C | S24: =IF($Q$18=TRUE,5,15) -> 15
D25: =CHOOSE($J$3,INDEX(tab_LANGUAGE[[ENGLISH]:[PORTUGUÊS]],16,_ENGLISH),INDEX(tab_LANGUAGE[[ENGLISH]:[PORTUGUÊS]],16,_DUTCH),INDEX(tab_LANGUAGE[[ENGLISH]:[PORTUGUÊS]],16,_SLOVENSKY),INDEX(tab_LANGUAGE[[ENGLISH]:[PORTUGUÊS]],16,_DEUTSCH),INDEX(tab_LANGUAGE[[ENGLISH]:[PORTUGUÊS]],16,_FRANCAIS),INDEX(tab_LANGUAGE[[ENGLISH]:[PORTUGUÊS]],16,_PORTUGUÊS)) -> Max. prúd @ MPP min. tepl. | H25: =IF('Calculation table'!E20=0,"N.A.",'Calculation table'!F40) -> 61.97411397 | K25: =CHOOSE($J$3,INDEX(tab_LANGUAGE[[ENGLISH]:[PORTUGUÊS]],22,_ENGLISH),INDEX(tab_LANGUAGE[[ENGLISH]:[PORTUGUÊS]],22,_DUTCH),INDEX(tab_LANGUAGE[[ENGLISH]:[PORTUGUÊS]],22,_SLOVENSKY),INDEX(tab_LANGUAGE[[ENGLISH]:[PORTUGUÊS]],22,_DEUTSCH),INDEX(tab_LANGUAGE[[ENGLISH]:[PORTUGUÊS]],22,_FRANCAIS),INDEX(tab_LANGUAGE[[ENGLISH]:[PORTUGUÊS]],22,_PORTUGUÊS)) -> Ploché na lodi (slabé vetranie) | P25: 10 °C | Q25: =IF(_Temp=1, 65&" °C", ((65)*9/5)+32& " °F") -> 65 °C | S25: =IF($Q$18=TRUE,0,10) -> 10
H26: =IF(H25="N.A.","",IF('Calculation table'!F40=G26,CHOOSE($J$3,INDEX(tab_LANGUAGE[[ENGLISH]:[PORTUGUÊS]],27,_ENGLISH),INDEX(tab_LANGUAGE[[ENGLISH]:[PORTUGUÊS]],27,_DUTCH),INDEX(tab_LANGUAGE[[ENGLISH]:[PORTUGUÊS]],27,_SLOVENSKY),INDEX(tab_LANGUAGE[[ENGLISH]:[PORTUGUÊS]],27,_DEUTSCH),INDEX(tab_LANGUAGE[[ENGLISH]:[PORTUGUÊS]],27,_FRANCAIS),INDEX(tab_LANGUAGE[[ENGLISH]:[PORTUGUÊS]],27,_PORTUGUÊS)),"")) ->  | K26: =CHOOSE($J$3,INDEX(tab_LANGUAGE[[ENGLISH]:[PORTUGUÊS]],23,_ENGLISH),INDEX(tab_LANGUAGE[[ENGLISH]:[PORTUGUÊS]],23,_DUTCH),INDEX(tab_LANGUAGE[[ENGLISH]:[PORTUGUÊS]],23,_SLOVENSKY),INDEX(tab_LANGUAGE[[ENGLISH]:[PORTUGUÊS]],23,_DEUTSCH),INDEX(tab_LANGUAGE[[ENGLISH]:[PORTUGUÊS]],23,_FRANCAIS),INDEX(tab_LANGUAGE[[ENGLISH]:[PORTUGUÊS]],23,_PORTUGUÊS)) -> Naklonené na lodi (dobré vetranie) | P26: 5 °C | Q26: =IF(_Temp=1, 60&" °C", ((60)*9/5)+32& " °F") -> 60 °C | S26: =IF($Q$18=TRUE,-5,5) -> 5
D27: =CHOOSE($J$3,INDEX(tab_LANGUAGE[[ENGLISH]:[PORTUGUÊS]],17,_ENGLISH),INDEX(tab_LANGUAGE[[ENGLISH]:[PORTUGUÊS]],17,_DUTCH),INDEX(tab_LANGUAGE[[ENGLISH]:[PORTUGUÊS]],17,_SLOVENSKY),INDEX(tab_LANGUAGE[[ENGLISH]:[PORTUGUÊS]],17,_DEUTSCH),INDEX(tab_LANGUAGE[[ENGLISH]:[PORTUGUÊS]],17,_FRANCAIS),INDEX(tab_LANGUAGE[[ENGLISH]:[PORTUGUÊS]],17,_PORTUGUÊS)) -> Max. prúd @ MPP max. tepl. | H27: =IF('Calculation table'!E20=0,"N.A.",'Calculation table'!G47) -> 53.38473429 | K27: =CHOOSE($J$3,INDEX(tab_LANGUAGE[[ENGLISH]:[PORTUGUÊS]],24,_ENGLISH),INDEX(tab_LANGUAGE[[ENGLISH]:[PORTUGUÊS]],24,_DUTCH),INDEX(tab_LANGUAGE[[ENGLISH]:[PORTUGUÊS]],24,_SLOVENSKY),INDEX(tab_LANGUAGE[[ENGLISH]:[PORTUGUÊS]],24,_DEUTSCH),INDEX(tab_LANGUAGE[[ENGLISH]:[PORTUGUÊS]],24,_FRANCAIS),INDEX(tab_LANGUAGE[[ENGLISH]:[PORTUGUÊS]],24,_PORTUGUÊS)) -> Šikmá strecha v teplej oblasti (dobré vetranie) | P27: 5 °C | Q27: =IF(_Temp=1, 70&" °C", ((70)*9/5)+32& " °F") -> 70 °C | S27: =IF($Q$18=TRUE,-5,5) -> 5
H28: =IF(H27="N.A.","",IF('Calculation table'!G47=G26,CHOOSE($J$3,INDEX(tab_LANGUAGE[[ENGLISH]:[PORTUGUÊS]],28,_ENGLISH),INDEX(tab_LANGUAGE[[ENGLISH]:[PORTUGUÊS]],28,_DUTCH),INDEX(tab_LANGUAGE[[ENGLISH]:[PORTUGUÊS]],28,_SLOVENSKY),INDEX(tab_LANGUAGE[[ENGLISH]:[PORTUGUÊS]],28,_DEUTSCH),INDEX(tab_LANGUAGE[[ENGLISH]:[PORTUGUÊS]],28,_FRANCAIS),INDEX(tab_LANGUAGE[[ENGLISH]:[PORTUGUÊS]],28,_PORTUGUÊS)),"")) ->  | K28: =CHOOSE($J$3,INDEX(tab_LANGUAGE[[ENGLISH]:[PORTUGUÊS]],25,_ENGLISH),INDEX(tab_LANGUAGE[[ENGLISH]:[PORTUGUÊS]],25,_DUTCH),INDEX(tab_LANGUAGE[[ENGLISH]:[PORTUGUÊS]],25,_SLOVENSKY),INDEX(tab_LANGUAGE[[ENGLISH]:[PORTUGUÊS]],25,_DEUTSCH),INDEX(tab_LANGUAGE[[ENGLISH]:[PORTUGUÊS]],25,_FRANCAIS),INDEX(tab_LANGUAGE[[ENGLISH]:[PORTUGUÊS]],25,_PORTUGUÊS)) -> Šikmá strecha v priemernej oblasti (dobré vetranie) | P28: 0 °C | Q28: =IF(_Temp=1, 65&" °C", ((65)*9/5)+32& " °F") -> 65 °C | S28: =IF($Q$18=TRUE,-10,0) -> 0
D29: =CHOOSE($J$3,INDEX(tab_LANGUAGE[[ENGLISH]:[PORTUGUÊS]],18,_ENGLISH),INDEX(tab_LANGUAGE[[ENGLISH]:[PORTUGUÊS]],18,_DUTCH),INDEX(tab_LANGUAGE[[ENGLISH]:[PORTUGUÊS]],18,_SLOVENSKY),INDEX(tab_LANGUAGE[[ENGLISH]:[PORTUGUÊS]],18,_DEUTSCH),INDEX(tab_LANGUAGE[[ENGLISH]:[PORTUGUÊS]],18,_FRANCAIS),INDEX(tab_LANGUAGE[[ENGLISH]:[PORTUGUÊS]],18,_PORTUGUÊS)) -> Konfigurácia solárneho modulu | G29: =IF('Calculation table'!E50=FALSE,IF(H21<=H20,IF(H25<=H24,IF(H23>H22,I29,J29),J29),J29),J29) -> Vyhovujúci | I29: =CHOOSE($J$3,INDEX(tab_LANGUAGE[[ENGLISH]:[PORTUGUÊS]],37,_ENGLISH),INDEX(tab_LANGUAGE[[ENGLISH]:[PORTUGUÊS]],37,_DUTCH),INDEX(tab_LANGUAGE[[ENGLISH]:[PORTUGUÊS]],37,_SLOVENSKY),INDEX(tab_LANGUAGE[[ENGLISH]:[PORTUGUÊS]],37,_DEUTSCH),INDEX(tab_LANGUAGE[[ENGLISH]:[PORTUGUÊS]],37,_FRANCAIS),INDEX(tab_LANGUAGE[[ENGLISH]:[PORTUGUÊS]],37,_PORTUGUÊS)) -> Vyhovujúci | J29: =CHOOSE($J$3,INDEX(tab_LANGUAGE[[ENGLISH]:[PORTUGUÊS]],38,_ENGLISH),INDEX(tab_LANGUAGE[[ENGLISH]:[PORTUGUÊS]],38,_DUTCH),INDEX(tab_LANGUAGE[[ENGLISH]:[PORTUGUÊS]],38,_SLOVENSKY),INDEX(tab_LANGUAGE[[ENGLISH]:[PORTUGUÊS]],38,_DEUTSCH),INDEX(tab_LANGUAGE[[ENGLISH]:[PORTUGUÊS]],38,_FRANCAIS),INDEX(tab_LANGUAGE[[ENGLISH]:[PORTUGUÊS]],38,_PORTUGUÊS)) -> Nevyhovujúci | K29: =CHOOSE($J$3,INDEX(tab_LANGUAGE[[ENGLISH]:[PORTUGUÊS]],26,_ENGLISH),INDEX(tab_LANGUAGE[[ENGLISH]:[PORTUGUÊS]],26,_DUTCH),INDEX(tab_LANGUAGE[[ENGLISH]:[PORTUGUÊS]],26,_SLOVENSKY),INDEX(tab_LANGUAGE[[ENGLISH]:[PORTUGUÊS]],26,_DEUTSCH),INDEX(tab_LANGUAGE[[ENGLISH]:[PORTUGUÊS]],26,_FRANCAIS),INDEX(tab_LANGUAGE[[ENGLISH]:[PORTUGUÊS]],26,_PORTUGUÊS)) -> Šikmá strecha na kopci (dobré vetranie) | P29: -5 °C | Q29: =IF(_Temp=1, 60&" °C", ((60)*9/5)+32& " °F") -> 60 °C | S29: =IF($Q$18=TRUE,-10,-5) -> -5
E32: =CHOOSE($J$3,INDEX(tab_LANGUAGE[[ENGLISH]:[PORTUGUÊS]],29,_ENGLISH),INDEX(tab_LANGUAGE[[ENGLISH]:[PORTUGUÊS]],29,_DUTCH),INDEX(tab_LANGUAGE[[ENGLISH]:[PORTUGUÊS]],29,_SLOVENSKY),INDEX(tab_LANGUAGE[[ENGLISH]:[PORTUGUÊS]],29,_DEUTSCH),INDEX(tab_LANGUAGE[[ENGLISH]:[PORTUGUÊS]],29,_FRANCAIS),INDEX(tab_LANGUAGE[[ENGLISH]:[PORTUGUÊS]],29,_PORTUGUÊS)) -> Vstupné napätia | M32: =CHOOSE($J$3,INDEX(tab_LANGUAGE[[ENGLISH]:[PORTUGUÊS]],30,_ENGLISH),INDEX(tab_LANGUAGE[[ENGLISH]:[PORTUGUÊS]],30,_DUTCH),INDEX(tab_LANGUAGE[[ENGLISH]:[PORTUGUÊS]],30,_SLOVENSKY),INDEX(tab_LANGUAGE[[ENGLISH]:[PORTUGUÊS]],30,_DEUTSCH),INDEX(tab_LANGUAGE[[ENGLISH]:[PORTUGUÊS]],30,_FRANCAIS),INDEX(tab_LANGUAGE[[ENGLISH]:[PORTUGUÊS]],30,_PORTUGUÊS)) -> Nabíjacie prúdy
F33: =CHOOSE($J$3,INDEX(tab_LANGUAGE[[ENGLISH]:[PORTUGUÊS]],63,_ENGLISH),INDEX(tab_LANGUAGE[[ENGLISH]:[PORTUGUÊS]],63,_DUTCH),INDEX(tab_LANGUAGE[[ENGLISH]:[PORTUGUÊS]],63,_SLOVENSKY),INDEX(tab_LANGUAGE[[ENGLISH]:[PORTUGUÊS]],63,_DEUTSCH),INDEX(tab_LANGUAGE[[ENGLISH]:[PORTUGUÊS]],63,_FRANCAIS),INDEX(tab_LANGUAGE[[ENGLISH]:[PORTUGUÊS]],63,_PORTUGUÊS)) -> Vytlačiť GRAF ako obrázok | N33: =CHOOSE($J$3,INDEX(tab_LANGUAGE[[ENGLISH]:[PORTUGUÊS]],63,_ENGLISH),INDEX(tab_LANGUAGE[[ENGLISH]:[PORTUGUÊS]],63,_DUTCH),INDEX(tab_LANGUAGE[[ENGLISH]:[PORTUGUÊS]],63,_SLOVENSKY),INDEX(tab_LANGUAGE[[ENGLISH]:[PORTUGUÊS]],63,_DEUTSCH),INDEX(tab_LANGUAGE[[ENGLISH]:[PORTUGUÊS]],63,_FRANCAIS),INDEX(tab_LANGUAGE[[ENGLISH]:[PORTUGUÊS]],63,_PORTUGUÊS)) -> Vytlačiť GRAF ako obrázok
I65: =CHOOSE($J$3,INDEX(tab_LANGUAGE[[ENGLISH]:[PORTUGUÊS]],65,_ENGLISH),INDEX(tab_LANGUAGE[[ENGLISH]:[PORTUGUÊS]],65,_DUTCH),INDEX(tab_LANGUAGE[[ENGLISH]:[PORTUGUÊS]],65,_SLOVENSKY),INDEX(tab_LANGUAGE[[ENGLISH]:[PORTUGUÊS]],65,_DEUTSCH),INDEX(tab_LANGUAGE[[ENGLISH]:[PORTUGUÊS]],65,_FRANCAIS),INDEX(tab_LANGUAGE[[ENGLISH]:[PORTUGUÊS]],65,_PORTUGUÊS)) -> Tabuľka hodnôt
C66: =C82 -> Rad Voc max. | D66: =C87 -> Rad Voc min. | E66: =C86 -> Voc max. | F66: =C84 -> Vmpp RUN min. | G66: =C85 -> Rad Vmpp corr.max. | H66: =C83 -> Rad Vmpp corr. min. | I66: =C88 -> Voc START min. | K66: =CHOOSE($J$3,INDEX(tab_LANGUAGE[[ENGLISH]:[PORTUGUÊS]],66,_ENGLISH),INDEX(tab_LANGUAGE[[ENGLISH]:[PORTUGUÊS]],66,_DUTCH),INDEX(tab_LANGUAGE[[ENGLISH]:[PORTUGUÊS]],66,_SLOVENSKY),INDEX(tab_LANGUAGE[[ENGLISH]:[PORTUGUÊS]],66,_DEUTSCH),INDEX(tab_LANGUAGE[[ENGLISH]:[PORTUGUÊS]],66,_FRANCAIS),INDEX(tab_LANGUAGE[[ENGLISH]:[PORTUGUÊS]],66,_PORTUGUÊS)) -> Teplota | L66: Ibat max. | M66: Ibat max. @ Impp | O66: Ibat min. @ Impp
C67: =ROUND('Calculation table'!F30,1) -> 163.3 | E67: =ROUND('Calculation table'!C30,1) -> 250 | F67: =ROUND('Calculation table'!E30,1) -> 49 | G67: =ROUND('Calculation table'!H30,1) -> 138 | I67: =ROUND('Calculation table'!D30,1) -> 53 | J67: =IF(_Temp=1,'Calculation table'!A30&"°C",'Calculation table'!A30&"°F") -> -15°C | L67: =ROUND('Calculation table'!C40,1) -> 100 | M67: =ROUND('Calculation table'!F40,1) -> 62
C68: =ROUND('Calculation table'!F31,1) -> 161.4 | E68: =ROUND('Calculation table'!C31,1) -> 250 | F68: =ROUND('Calculation table'!E31,1) -> 49 | G68: =ROUND('Calculation table'!H31,1) -> 136.1 | I68: =ROUND('Calculation table'!D31,1) -> 53 | J68: =IF(_Temp=1,'Calculation table'!A31&"°C",'Calculation table'!A31&"°F") -> -10°C | L68: =ROUND('Calculation table'!C41,1) -> 100 | M68: =ROUND('Calculation table'!F41,1) -> 61.3
C69: =ROUND('Calculation table'!F32,1) -> 159.4 | E69: =ROUND('Calculation table'!C32,1) -> 250 | F69: =ROUND('Calculation table'!E32,1) -> 49 | G69: =ROUND('Calculation table'!H32,1) -> 134.1 | I69: =ROUND('Calculation table'!D32,1) -> 53 | J69: =IF(_Temp=1,'Calculation table'!A32&"°C",'Calculation table'!A32&"°F") -> -5°C | L69: =ROUND('Calculation table'!C42,1) -> 100 | M69: =ROUND('Calculation table'!F42,1) -> 60.6
C70: =ROUND('Calculation table'!F33,1) -> 157.5 | E70: =ROUND('Calculation table'!C33,1) -> 250 | F70: =ROUND('Calculation table'!E33,1) -> 49 | G70: =ROUND('Calculation table'!H33,1) -> 132.2 | I70: =ROUND('Calculation table'!D33,1) -> 53 | J70: =IF(_Temp=1,'Calculation table'!A33&"°C",'Calculation table'!A33&"°F") -> 0°C | L70: =ROUND('Calculation table'!C43,1) -> 100 | M70: =ROUND('Calculation table'!F43,1) -> 59.9
D71: =ROUND('Calculation table'!I34,1) -> 146 | E71: =ROUND('Calculation table'!C34,1) -> 250 | F71: =ROUND('Calculation table'!E34,1) -> 49 | H71: =ROUND('Calculation table'!K34,1) -> 120.7 | I71: =ROUND('Calculation table'!D34,1) -> 53 | J71: =IF(_Temp=1,'Calculation table'!A34&"°C",'Calculation table'!A34&"°F") -> 30°C | L71: =ROUND('Calculation table'!C44,1) -> 100 | O71: =ROUND('Calculation table'!G44,1) -> 55.6
D72: =ROUND('Calculation table'!I35,1) -> 144.1 | E72: =ROUND('Calculation table'!C35,1) -> 250 | F72: =ROUND('Calculation table'!E35,1) -> 49 | H72: =ROUND('Calculation table'!K35,1) -> 118.7 | I72: =ROUND('Calculation table'!D35,1) -> 53 | J72: =IF(_Temp=1,'Calculation table'!A35&"°C",'Calculation table'!A35&"°F") -> 35°C | L72: =ROUND('Calculation table'!C45,1) -> 100 | O72: =ROUND('Calculation table'!G45,1) -> 54.9
D73: =ROUND('Calculation table'!I36,1) -> 142.1 | E73: =ROUND('Calculation table'!C36,1) -> 250 | F73: =ROUND('Calculation table'!E36,1) -> 49 | H73: =ROUND('Calculation table'!K36,1) -> 116.8 | I73: =ROUND('Calculation table'!D36,1) -> 53 | J73: =IF(_Temp=1,'Calculation table'!A36&"°C",'Calculation table'!A36&"°F") -> 40°C | L73: =ROUND('Calculation table'!C46,1) -> 100 | O73: =ROUND('Calculation table'!G46,1) -> 54.1
D74: =ROUND('Calculation table'!I37,1) -> 140.2 | E74: =ROUND('Calculation table'!C37,1) -> 250 | F74: =ROUND('Calculation table'!E37,1) -> 49 | H74: =ROUND('Calculation table'!K37,1) -> 114.9 | I74: =ROUND('Calculation table'!D37,1) -> 53 | J74: =IF(_Temp=1,'Calculation table'!A37&"°C",'Calculation table'!A37&"°F") -> 45°C | L74: =ROUND('Calculation table'!C47,1) -> 100 | O74: =ROUND('Calculation table'!G47,1) -> 53.4
B82: 56 | C82: =CHOOSE($J$3,INDEX(tab_LANGUAGE[[ENGLISH]:[PORTUGUÊS]],56,_ENGLISH),INDEX(tab_LANGUAGE[[ENGLISH]:[PORTUGUÊS]],56,_DUTCH),INDEX(tab_LANGUAGE[[ENGLISH]:[PORTUGUÊS]],56,_SLOVENSKY),INDEX(tab_LANGUAGE[[ENGLISH]:[PORTUGUÊS]],56,_DEUTSCH),INDEX(tab_LANGUAGE[[ENGLISH]:[PORTUGUÊS]],56,_FRANCAIS),INDEX(tab_LANGUAGE[[ENGLISH]:[PORTUGUÊS]],56,_PORTUGUÊS)) -> Rad Voc max.
B83: 57 | C83: =CHOOSE($J$3,INDEX(tab_LANGUAGE[[ENGLISH]:[PORTUGUÊS]],57,_ENGLISH),INDEX(tab_LANGUAGE[[ENGLISH]:[PORTUGUÊS]],57,_DUTCH),INDEX(tab_LANGUAGE[[ENGLISH]:[PORTUGUÊS]],57,_SLOVENSKY),INDEX(tab_LANGUAGE[[ENGLISH]:[PORTUGUÊS]],57,_DEUTSCH),INDEX(tab_LANGUAGE[[ENGLISH]:[PORTUGUÊS]],57,_FRANCAIS),INDEX(tab_LANGUAGE[[ENGLISH]:[PORTUGUÊS]],57,_PORTUGUÊS)) -> Rad Vmpp corr. min.
B84: 58 | C84: =CHOOSE($J$3,INDEX(tab_LANGUAGE[[ENGLISH]:[PORTUGUÊS]],58,_ENGLISH),INDEX(tab_LANGUAGE[[ENGLISH]:[PORTUGUÊS]],58,_DUTCH),INDEX(tab_LANGUAGE[[ENGLISH]:[PORTUGUÊS]],58,_SLOVENSKY),INDEX(tab_LANGUAGE[[ENGLISH]:[PORTUGUÊS]],58,_DEUTSCH),INDEX(tab_LANGUAGE[[ENGLISH]:[PORTUGUÊS]],58,_FRANCAIS),INDEX(tab_LANGUAGE[[ENGLISH]:[PORTUGUÊS]],58,_PORTUGUÊS)) -> Vmpp RUN min.
B85: 59 | C85: =CHOOSE($J$3,INDEX(tab_LANGUAGE[[ENGLISH]:[PORTUGUÊS]],59,_ENGLISH),INDEX(tab_LANGUAGE[[ENGLISH]:[PORTUGUÊS]],59,_DUTCH),INDEX(tab_LANGUAGE[[ENGLISH]:[PORTUGUÊS]],59,_SLOVENSKY),INDEX(tab_LANGUAGE[[ENGLISH]:[PORTUGUÊS]],59,_DEUTSCH),INDEX(tab_LANGUAGE[[ENGLISH]:[PORTUGUÊS]],59,_FRANCAIS),INDEX(tab_LANGUAGE[[ENGLISH]:[PORTUGUÊS]],59,_PORTUGUÊS)) -> Rad Vmpp corr.max.
B86: 60 | C86: =CHOOSE($J$3,INDEX(tab_LANGUAGE[[ENGLISH]:[PORTUGUÊS]],60,_ENGLISH),INDEX(tab_LANGUAGE[[ENGLISH]:[PORTUGUÊS]],60,_DUTCH),INDEX(tab_LANGUAGE[[ENGLISH]:[PORTUGUÊS]],60,_SLOVENSKY),INDEX(tab_LANGUAGE[[ENGLISH]:[PORTUGUÊS]],60,_DEUTSCH),INDEX(tab_LANGUAGE[[ENGLISH]:[PORTUGUÊS]],60,_FRANCAIS),INDEX(tab_LANGUAGE[[ENGLISH]:[PORTUGUÊS]],60,_PORTUGUÊS)) -> Voc max.
B87: 61 | C87: =CHOOSE($J$3,INDEX(tab_LANGUAGE[[ENGLISH]:[PORTUGUÊS]],61,_ENGLISH),INDEX(tab_LANGUAGE[[ENGLISH]:[PORTUGUÊS]],61,_DUTCH),INDEX(tab_LANGUAGE[[ENGLISH]:[PORTUGUÊS]],61,_SLOVENSKY),INDEX(tab_LANGUAGE[[ENGLISH]:[PORTUGUÊS]],61,_DEUTSCH),INDEX(tab_LANGUAGE[[ENGLISH]:[PORTUGUÊS]],61,_FRANCAIS),INDEX(tab_LANGUAGE[[ENGLISH]:[PORTUGUÊS]],61,_PORTUGUÊS)) -> Rad Voc min.
B88: 62 | C88: =CHOOSE($J$3,INDEX(tab_LANGUAGE[[ENGLISH]:[PORTUGUÊS]],62,_ENGLISH),INDEX(tab_LANGUAGE[[ENGLISH]:[PORTUGUÊS]],62,_DUTCH),INDEX(tab_LANGUAGE[[ENGLISH]:[PORTUGUÊS]],62,_SLOVENSKY),INDEX(tab_LANGUAGE[[ENGLISH]:[PORTUGUÊS]],62,_DEUTSCH),INDEX(tab_LANGUAGE[[ENGLISH]:[PORTUGUÊS]],62,_FRANCAIS),INDEX(tab_LANGUAGE[[ENGLISH]:[PORTUGUÊS]],62,_PORTUGUÊS)) -> Voc START min.

Sheet Modules
A1: Názov | B1: Výrobca | C1: Typ | D1: Výkon [W] | E1: Vmpp [V] | F1: Impp [A] | G1: Voc [V] | H1: Isc [A] | I1: V temp coeff [%/°C] | J1: I temp coeff [%/°C]
A2: Žiadny
A3: Victron Energy SPM20-12 (SPM040201200) | B3: Victron Energy | C3: SPM20-12 | D3: 20 | E3: 18.5 | F3: 1.09 | G3: 22.6 | H3: 1.19 | I3: -0.35 | J3: 0.04
A4: Victron Energy SPM30-12 (SPM040301200) | B4: Victron Energy | C4: SPM30-12 | D4: 30 | E4: 18.7 | F4: 1.61 | G4: 22.87 | H4: 1.76 | I4: -0.34 | J4: 0.037
A5: Victron Energy SPM40-12 (SPM040401200) | B5: Victron Energy | C5: SPM40-12 | D5: 40 | E5: 18.3 | F5: 2.19 | G5: 22.45 | H5: 2.4 | I5: -0.35 | J5: 0.04
A6: Victron Energy SPM55-12 (SPM040551200) | B6: Victron Energy | C6: SPM55-12 | D6: 55 | E6: 18.8 | F6: 2.94 | G6: 22.9 | H6: 3.22 | I6: -0.35 | J6: 0.04
A7: Victron Energy SPM90-12 (SPM040901200 ) | B7: Victron Energy | C7: SPM90-12 | D7: 90 | E7: 19.6 | F7: 4.59 | G7: 24.06 | H7: 5.03 | I7: -0.35 | J7: 0.04
A8: Victron Energy SPM115-12 (SPM041151200) | B8: Victron Energy | C8: SPM115-12 | D8: 115 | E8: 19 | F8: 6.04 | G8: 23.32 | H8: 6.61 | I8: -0.35 | J8: 0.04
A9: Victron Energy SPM175-12 (SPM041751200) | B9: Victron Energy | C9: SPM175-12 | D9: 175 | E9: 19.4 | F9: 9.03 | G9: 23.7 | H9: 9.89 | I9: -0.35 | J9: 0.04
A10: Victron Energy SPM215-24 (SPM042152400) | B10: Victron Energy | C10: SPM215-24 | D10: 215 | E10: 37.4 | F10: 5.75 | G10: 45.82 | H10: 6.3 | I10: -0.35 | J10: 0.04
A11: Victron Energy SPM305-20 (SPM043052000) | B11: Victron Energy | C11: SPM305-20 | D11: 305 | E11: 32.5 | F11: 9.38 | G11: 39.7 | H11: 10.27 | I11: -0.35 | J11: 0.04
A12: Victron Energy SPM360-24 (SPM043602400) | B12: Victron Energy | C12: SPM360-24 | D12: 360 | E12: 38.4 | F12: 9.38 | G12: 47.4 | H12: 10.24 | I12: -0.35 | J12: 0.04
A13: Victron Energy SPP20-12 (SPP040201200) | B13: Victron Energy | C13: SPP20-12 | D13: 20 | E13: 18.4 | F13: 1.09 | G13: 21.96 | H13: 1.18 | I13: -0.35 | J13: 0.04
A14: Victron Energy SPP30-12 (SPP040301200) | B14: Victron Energy | C14: SPP30-12 | D14: 30 | E14: 18.2 | F14: 1.66 | G14: 21.8 | H14: 1.8 | I14: -0.35 | J14: 0.04
A15: Victron Energy SPP45-12 (SPP040451200) | B15: Victron Energy | C15: SPP45-12 | D15: 45 | E15: 19.1 | F15: 2.36 | G15: 22.9 | H15: 2.55 | I15: -0.35 | J15: 0.04
A16: Victron Energy SPP60-12 (SPP040601200) | B16: Victron Energy | C16: SPP60-12 | D16: 60 | E16: 19.3 | F16: 3.12 | G16: 23.1 | H16: 3.37 | I16: -0.35 | J16: 0.04
A17: Victron Energy SPP90-12 (SPP040901200) | B17: Victron Energy | C17: SPP90-12 | D17: 90 | E17: 19.5 | F17: 4.61 | G17: 23.44 | H17: 4.98 | I17: -0.35 | J17: 0.04
A18: Victron Energy SPP115-12 (SPP041151200) | B18: Victron Energy | C18: SPP115-12 | D18: 115 | E18: 18.94 | F18: 6.08 | G18: 22.73 | H18: 6.56 | I18: -0.35 | J18: 0.04
A19: Victron Energy SPP175-12 (SPP041751200) | B19: Victron Energy | C19: SPP175-12 | D19: 175 | E19: 18.3 | F19: 9.56 | G19: 21.9 | H19: 10.24 | I19: -0.35 | J19: 0.04
A20: Victron Energy SPP270-20 (SPP042702000) | B20: Victron Energy | C20: SPP270-20 | D20: 270 | E20: 31.7 | F20: 8.52 | G20: 38.04 | H20: 9.21 | I20: -0.34 | J20: 0.045
A21: Victron Energy SPP330-24 (SPP043302400) | B21: Victron Energy | C21: SPP330-24 | D21: 330 | E21: 37.3 | F21: 8.86 | G21: 44.72 | H21: 9.57 | I21: -0.35 | J21: 0.04
A22: CanadianSolar HiKu PERC CS3W 455MS | B22: CanadianSolar | C22: CS3W 455MS | D22: 455 | E22: 41.3 | F22: 11.02 | G22: 49.3 | H22: 11.66 | I22: -0.26 | J22: 0.05
A23: CanadianSolar HiKu PERC CS3W 460MS | B23: CanadianSolar | C23: CS3W 460MS | D23: 460 | E23: 41.5 | F23: 11.09 | G23: 49.5 | H23: 11.72 | I23: -0.26 | J23: 0.05
A24: CanadianSolar HiKu6 Mono PERC CS6R 410MS | B24: CanadianSolar | C24: CS6R 410MS | D24: 410 | E24: 31.2 | F24: 13.15 | G24: 37.2 | H24: 14.01 | I24: -0.26 | J24: 0.05
A25: CanadianSolar HiKu6 Mono PERC CS6R 410MS BF | B25: CanadianSolar | C25: CS6R 410MS BF | D25: 410 | E25: 31.2 | F25: 13.15 | G25: 37.2 | H25: 14.01 | I25: -0.26 | J25: 0.05
A26: Q.PEAK DUO G9 355 Wp | B26: Hanwha Q CELLS | C26: DUO-G9 355 Wp | D26: 355 | E26: 34.58 | F26: 10.26 | G26: 40.97 | H26: 10.71 | I26: -0.27 | J26: 0.04
A27: Q.PEAK DUO G9 350 Wp | B27: Hanwha Q CELLS | C27: DUO-G9 350 Wp | D27: 350 | E27: 34.31 | F27: 10.2 | G27: 40.94 | H27: 10.68 | I27: -0.27 | J27: 0.04
A28: JA SOLAR JAM72S20 450/MR | B28: JA SOLAR | C28: JAM72S20 450/MR | D28: 450 | E28: 41.52 | F28: 10.84 | G28: 49.7 | H28: 11.36 | I28: -0.272 | J28: 0.044
A39: =IF(#REF!=6,INDEX(Language!B3:G50,40,6),IF(#REF!=5,INDEX(Language!B3:F50,40,1),IF(#REF!=4,INDEX(Language!B3:F50,40,2),IF(#REF!=3,INDEX(Language!B3:F50,40,3),IF(#REF!=2,INDEX(Language!B3:F50,40,4),INDEX(Language!B3:F50,40,5)))))) -> 
A40: =IF(#REF!=6,INDEX(Language!B3:G50,41,6),IF(#REF!=5,INDEX(Language!B3:F50,41,1),IF(#REF!=4,INDEX(Language!B3:F50,41,2),IF(#REF!=3,INDEX(Language!B3:F50,41,3),IF(#REF!=2,INDEX(Language!B3:F50,41,4),INDEX(Language!B3:F50,41,5)))))) -> 
A41: =IF(#REF!=6,INDEX(Language!B3:G50,42,6),IF(#REF!=5,INDEX(Language!B3:F50,42,1),IF(#REF!=4,INDEX(Language!B3:F50,42,2),IF(#REF!=3,INDEX(Language!B3:F50,42,3),IF(#REF!=2,INDEX(Language!B3:F50,42,4),INDEX(Language!B3:F50,42,5)))))) ->  | C41: 24.1 | D41: V
A42: =IF(#REF!=6,INDEX(Language!B3:G50,43,6),IF(#REF!=5,INDEX(Language!B3:F50,43,1),IF(#REF!=4,INDEX(Language!B3:F50,43,2),IF(#REF!=3,INDEX(Language!B3:F50,43,3),IF(#REF!=2,INDEX(Language!B3:F50,43,4),INDEX(Language!B3:F50,43,5)))))) ->  | C42: -77 | D42: mV/°C
A43: =IF(#REF!=6,INDEX(Language!B3:G50,44,6),IF(#REF!=5,INDEX(Language!B3:F50,44,1),IF(#REF!=4,INDEX(Language!B3:F50,44,2),IF(#REF!=3,INDEX(Language!B3:F50,44,3),IF(#REF!=2,INDEX(Language!B3:F50,44,4),INDEX(Language!B3:F50,44,5)))))) ->  | C43: =(C42/1000)/(C41/100) -> -0.3195020747 | D43: %/°C
A45: =IF(#REF!=6,INDEX(Language!B3:G50,45,6),IF(#REF!=5,INDEX(Language!B3:F50,45,1),IF(#REF!=4,INDEX(Language!B3:F50,45,2),IF(#REF!=3,INDEX(Language!B3:F50,45,3),IF(#REF!=2,INDEX(Language!B3:F50,45,4),INDEX(Language!B3:F50,45,5)))))) -> 
A46: =IF(#REF!=6,INDEX(Language!B3:G50,46,6),IF(#REF!=5,INDEX(Language!B3:F50,46,1),IF(#REF!=4,INDEX(Language!B3:F50,46,2),IF(#REF!=3,INDEX(Language!B3:F50,46,3),IF(#REF!=2,INDEX(Language!B3:F50,46,4),INDEX(Language!B3:F50,46,5)))))) ->  | C46: 8.72 | D46: A
A47: =IF(#REF!=6,INDEX(Language!B3:G50,47,6),IF(#REF!=5,INDEX(Language!B3:F50,47,1),IF(#REF!=4,INDEX(Language!B3:F50,47,2),IF(#REF!=3,INDEX(Language!B3:F50,47,3),IF(#REF!=2,INDEX(Language!B3:F50,47,4),INDEX(Language!B3:F50,47,5)))))) ->  | C47: 4.7 | D47: mA/°C
A48: =IF(#REF!=6,INDEX(Language!B3:G50,48,6),IF(#REF!=5,INDEX(Language!B3:F50,48,1),IF(#REF!=4,INDEX(Language!B3:F50,48,2),IF(#REF!=3,INDEX(Language!B3:F50,48,3),IF(#REF!=2,INDEX(Language!B3:F50,48,4),INDEX(Language!B3:F50,48,5)))))) ->  | C48: =(C47/1000)/(C46/100) -> 0.05389908257 | D48: %/°C

Sheet Regulator
A1: Názov | B1: Výrobca | C1: Typ | D1: Power @ 12V | E1: Power @ 24V | F1: Power @ 36V | G1: Power @ 48V | H1: Voc max | I1: Voc min | J1: Vmpp min | K1: S. voltage 1 | L1: S. voltage 2 | M1: S. voltage 3 | N1: S. voltage 4 | O1: IPV max | P1: Ibat max | Q1: Efficiency@12 | R1: Efficiency@24 | S1: Efficiency@36 | T1: Efficiency@48
A2: Victron Energy Blue-/ SmartSolar MPPT 75/10 | B2: Victron Energy | C2: Blue-/ SmartSolar MPPT 75/10 | D2: 135 | E2: 270 | F2: 0 | G2: 0 | H2: 75 | I2: 5 | J2: 1 | K2: 12 | L2: 24 | M2: N.A. | N2: N.A. | O2: 13 | P2: 10 | Q2: 0.98 | R2: 0.98 | S2: 0 | T2: 0
A3: Victron Energy Blue-/ SmartSolar MPPT 75/15 | B3: Victron Energy | C3: Blue-/ SmartSolar MPPT 75/15 | D3: 200 | E3: 400 | F3: 0 | G3: 0 | H3: 75 | I3: 5 | J3: 1 | K3: 12 | L3: 24 | M3: N.A. | N3: N.A. | O3: 15 | P3: 15 | Q3: 0.98 | R3: 0.98 | S3: 0 | T3: 0
A4: Victron Energy Blue-/ SmartSolar MPPT 100/15 | B4: Victron Energy | C4: Blue-/ SmartSolar MPPT 100/15 | D4: 200 | E4: 400 | F4: 0 | G4: 0 | H4: 100 | I4: 5 | J4: 1 | K4: 12 | L4: 24 | M4: N.A. | N4: N.A. | O4: 15 | P4: 15 | Q4: 0.98 | R4: 0.98 | S4: 0 | T4: 0
A5: Victron Energy Blue- /Smart Solar MPPT 100/20 | B5: Victron Energy | C5: Blue- /Smart Solar MPPT 100/20 | D5: 290 | E5: 580 | F5: 870 | G5: 1160 | H5: 100 | I5: 5 | J5: 1 | K5: 12 | L5: 24 | M5: 36 | N5: 48 | O5: 20 | P5: 20 | Q5: 0.98 | R5: 0.98 | S5: 0.98 | T5: 0.98
A6: Victron Energy Blue-/ SmartSolar MPPT 100/30 | B6: Victron Energy | C6: Blue-/ SmartSolar MPPT 100/30 | D6: 440 | E6: 880 | F6: 0 | G6: 0 | H6: 100 | I6: 5 | J6: 1 | K6: 12 | L6: 24 | M6: N.A. | N6: N.A. | O6: 35 | P6: 30 | Q6: 0.98 | R6: 0.98 | S6: 0 | T6: 0
A7: Victron Energy Blue-/ SmartSolar MPPT 100/50 | B7: Victron Energy | C7: Blue-/ SmartSolar MPPT 100/50 | D7: 700 | E7: 1400 | F7: 0 | G7: 0 | H7: 100 | I7: 5 | J7: 1 | K7: 12 | L7: 24 | M7: N.A. | N7: N.A. | O7: 60 | P7: 50 | Q7: 0.98 | R7: 0.98 | S7: 0 | T7: 0
A8: Victron Energy Blue-/ SmartSolar MPPT 150/35 | B8: Victron Energy | C8: Blue-/ SmartSolar MPPT 150/35 | D8: 500 | E8: 1000 | F8: 1500 | G8: 2000 | H8: 150 | I8: 5 | J8: 1 | K8: 12 | L8: 24 | M8: 36 | N8: 48 | O8: 40 | P8: 35 | Q8: 0.98 | R8: 0.98 | S8: 0.98 | T8: 0.98
A9: Victron Energy Blue-/ SmartSolar MPPT 150/45 Tr/MC4 | B9: Victron Energy | C9: Blue-/ SmartSolar MPPT 150/45 Tr/MC4 | D9: 650 | E9: 1300 | F9: 1950 | G9: 2600 | H9: 150 | I9: 5 | J9: 1 | K9: 12 | L9: 24 | M9: 36 | N9: 48 | O9: 50 | P9: 45 | Q9: 0.98 | R9: 0.98 | S9: 0.98 | T9: 0.98
A10: Victron Energy Blue-/ SmartSolar MPPT 150/60 Tr/MC4 | B10: Victron Energy | C10: Blue-/ SmartSolar MPPT 150/60 Tr/MC4 | D10: 860 | E10: 1720 | F10: 2580 | G10: 3440 | H10: 150 | I10: 5 | J10: 1 | K10: 12 | L10: 24 | M10: 36 | N10: 48 | O10: 50 | P10: 60 | Q10: 0.98 | R10: 0.98 | S10: 0.98 | T10: 0.98
A11: Victron Energy Blue-/ SmartSolar MPPT 150/70 Tr/Tr VE.Can/MC4 | B11: Victron Energy | C11: Blue-/ SmartSolar MPPT 150/70 Tr/Tr VE.Can/MC4 | D11: 1000 | E11: 2000 | F11: 3000 | G11: 4000 | H11: 150 | I11: 5 | J11: 1 | K11: 12 | L11: 24 | M11: 36 | N11: 48 | O11: 50 | P11: 70 | Q11: 0.98 | R11: 0.98 | S11: 0.98 | T11: 0.98
A12: Victron Energy SmartSolar MPPT 150/85 Tr/Tr VE.Can/MC4 | B12: Victron Energy | C12: SmartSolar MPPT 150/85 Tr/Tr VE.Can/MC4 | D12: 1200 | E12: 2400 | F12: 3600 | G12: 4900 | H12: 150 | I12: 5 | J12: 1 | K12: 12 | L12: 24 | M12: 36 | N12: 48 | O12: 70 | P12: 85 | Q12: 0.98 | R12: 0.98 | S12: 0.98 | T12: 0.98
A13: Victron Energy SmartSolar MPPT 150/100 Tr/Tr VE.Can/MC4 | B13: Victron Energy | C13: SmartSolar MPPT 150/100 Tr/Tr VE.Can/MC4 | D13: 1450 | E13: 2900 | F13: 4350 | G13: 5800 | H13: 150 | I13: 5 | J13: 1 | K13: 12 | L13: 24 | M13: 36 | N13: 48 | O13: 70 | P13: 100 | Q13: 0.98 | R13: 0.98 | S13: 0.98 | T13: 0.98
A14: Victron Energy SmartSolar MPPT 250/60 Tr/MC4 | B14: Victron Energy | C14: SmartSolar MPPT 250/60 Tr/MC4 | D14: 860 | E14: 1720 | F14: 2580 | G14: 3440 | H14: 250 | I14: 5 | J14: 1 | K14: 12 | L14: 24 | M14: 36 | N14: 48 | O14: 35 | P14: 60 | Q14: 0.99 | R14: 0.99 | S14: 0.99 | T14: 0.99
A15: Victron Energy SmartSolar MPPT 250/70 Tr/Tr VE.Can/MC4 | B15: Victron Energy | C15: SmartSolar MPPT 250/70 Tr/Tr VE.Can/MC4 | D15: 1000 | E15: 2000 | F15: 3000 | G15: 4000 | H15: 250 | I15: 5 | J15: 1 | K15: 12 | L15: 24 | M15: 36 | N15: 48 | O15: 35 | P15: 70 | Q15: 0.99 | R15: 0.99 | S15: 0.99 | T15: 0.99
A16: Victron Energy SmartSolar MPPT 250/85 Tr/Tr VE.Can/MC4 | B16: Victron Energy | C16: SmartSolar MPPT 250/85 Tr/Tr VE.Can/MC4 | D16: 1200 | E16: 2400 | F16: 3600 | G16: 4900 | H16: 250 | I16: 5 | J16: 1 | K16: 12 | L16: 24 | M16: 36 | N16: 48 | O16: 70 | P16: 85 | Q16: 0.99 | R16: 0.99 | S16: 0.99 | T16: 0.99
A17: Victron Energy SmartSolar MPPT 250/100 Tr/Tr VE.Can/MC4 | B17: Victron Energy | C17: SmartSolar MPPT 250/100 Tr/Tr VE.Can/MC4 | D17: 1450 | E17: 2900 | F17: 4350 | G17: 5800 | H17: 250 | I17: 5 | J17: 1 | K17: 12 | L17: 24 | M17: 36 | N17: 48 | O17: 70 | P17: 100 | Q17: 0.99 | R17: 0.99 | S17: 0.99 | T17: 0.99
A19: RS Model | B19: Manufacturer | C19: Type | D19: Power @ 12V | E19: Power @ 24V | F19: Power @ 36V | G19: Power @ 48V | H19: Voc max | I19: Voc min | J19: Vmpp min | K19: System Voltage | O19: IPV max | P19: Ibat max | Q19: Efficiency@12 | R19: Efficiency@24 | S19: Efficiency@36 | T19: Efficiency@48 | U19: Itracker
A20: =B20&" "&C20 -> Victron Energy SmartSolar MPPT RS 450/100 | B20: Victron Energy | C20: SmartSolar MPPT RS 450/100 | G20: 5760 | H20: 450 | I20: 120 | J20: 80 | K20: N.A. | L20: N.A. | M20: N.A. | N20: 48 | O20: 18 | P20: 100 | Q20: 0 | R20: 0 | S20: 0 | T20: 0.96 | U20: 70

Sheet Calculation table
A2: DATA:
A4: Location: | C4: =VALUE(LEFT(MPPT!E16,FIND(" ",MPPT!E16))) -> -15 | D4: min | E4: =MPPT!E16 -> -15 °C
C5: =VALUE(LEFT(MPPT!H16,FIND(" ",MPPT!H16))) -> 45 | D5: max | E5: =MPPT!H16 -> 45 °C
A7: Module info: | C7: =INDEX(tab_MODUL[[Výrobca]:[I temp coeff '[%/°C']]],_Modul,6)*_Serial -> 147.9 | D7: Voc @25°C
C8: =INDEX(tab_MODUL[[Výrobca]:[I temp coeff '[%/°C']]],_Modul,4)*_Serial -> 123.9 | D8: Vmpp @25°C
C9: =INDEX(tab_MODUL[[Výrobca]:[I temp coeff '[%/°C']]],_Modul,7)*_Paralel -> 23.32 | D9: Isc PV@25°C
C10: =INDEX(tab_MODUL[[Výrobca]:[I temp coeff '[%/°C']]],_Modul,5)*_Paralel -> 22.04 | D10: Impp PV @25°C
C11: =$C$10*$C$8/E20 -> 56.89075 | D11: Impp output @25°C
C12: =INDEX(tab_MODUL[[Výrobca]:[I temp coeff '[%/°C']]],_Modul,8) -> -0.26 | D12: Temp. Coeff. Voc
C13: =(C7/100)*C12 -> -0.38454 | D13: Temp. Coeff. Voc absolute
C14: =INDEX(tab_MODUL[[Výrobca]:[I temp coeff '[%/°C']]],_Modul,9) -> 0.05 | D14: Temp. Coeff. Isc
C15: =C9*(C14/100) -> 0.01166 | D15: Temp. Coeff. Isc absolute
C16: =MPPT!G11 -> 2730 | D16: Choosen PV power
A18: Regulator info: | C18: =INDEX(tab_REGULATOR[[Výrobca]:[Efficiency@48]],_Regulator,7) -> 250 | D18: Voc max | E18: =INDEX(tab_REGULATOR[[Výrobca]:[Ibat max]],_Regulator,15) -> 100 | F18: Ibat max
C19: =INDEX(tab_REGULATOR[[Výrobca]:[Efficiency@48]],_Regulator,8)+E20 -> 53 | D19: Voc min | E19: =INDEX(tab_REGULATOR[[Výrobca]:[Ibat max]],_Regulator,14) -> 70 | F19: IPV max
C20: =INDEX(tab_REGULATOR[[Výrobca]:[Efficiency@48]],MPPT!K8,9)+E20 -> 49 | D20: Vmpp min | E20: =IF(INDEX(MPPT!$Q$7:$Q$10,MPPT!$K$8,1)="N.A.",0,INDEX(MPPT!$Q$7:$Q$10,MPPT!$K$8,1)) -> 48 | F20: System voltage | G20: =IF(E20=12,16,IF(E20=24,17,IF(E20=36,18,19))) -> 19
C21: =IF(E20=48,INDEX(tab_REGULATOR[[Power @ 12V]:[Power @ 48V]],_Regulator,4),IF(E20=36,INDEX(tab_REGULATOR[[Power @ 12V]:[Power @ 48V]],_Regulator,3),IF(E20=24,INDEX(tab_REGULATOR[[Power @ 12V]:[Power @ 48V]],_Regulator,2),IF(E20=12,INDEX(tab_REGULATOR[[Power @ 12V]:[Power @ 48V]],_Regulator,1),0)))) -> 5800 | D21: Possible charge power (from datasheet) without limiting PV power | E21: =INDEX(tab_REGULATOR[[Výrobca]:[Efficiency@48]],_Regulator,G20) -> 0.99 | F21: Max. Efficiency
A23: Voltage drop: | C23: 0.0178 | D23: Cupper resistance
C24: =((MPPT!K10+MPPT!K10)*C23)/MPPT!K14 -> 0.05933333333 | D24: Factor
A27: RESULTS Blue- & SmartSolar :
A29: Temperature | C29: Voc max. | D29: Voc START min. | E29: Vmpp RUN min. | F29: String Voc max. | G29: String Vmpp max. | H29: String Vmpp corr.max. | I29: String Voc min. | J29: String Vmpp min. | K29: String Vmpp corr. min.
A30: =IF(_Temp=1,B30, ((B30)*9/5)+32) -> -15 | B30: =C4 -> -15 | C30: =$C$18 -> 250 | D30: =$C$19 -> 53 | E30: =$C$20 -> 49 | F30: =$C$7+($C$13*-(25-B30)) -> 163.2816 | G30: =$C$8+($C$13*-(25-B30)) -> 139.2816 | H30: =($C$8+($C$13*-(25-B30))-($C$24*D40)) -> 138.0015664
A31: -10 | B31: =B30+5 -> -10 | C31: =$C$18 -> 250 | D31: =$C$19 -> 53 | E31: =$C$20 -> 49 | F31: =$C$7+($C$13*-(25-B31)) -> 161.3589 | G31: =$C$8+($C$13*-(25-B31)) -> 137.3589 | H31: =($C$8+($C$13*-(25-B31))-($C$24*D41)) -> 136.0754073
A32: -5 | B32: =B31+5 -> -5 | C32: 250 | D32: 53 | E32: 49 | F32: =$C$7+($C$13*-(25-B32)) -> 159.4362 | G32: =$C$8+($C$13*-(25-B32)) -> 135.4362 | H32: =($C$8+($C$13*-(25-B32))-($C$24*D42)) -> 134.1492481
A33: 0 | B33: =B32+5 -> 0 | C33: 250 | D33: 53 | E33: 49 | F33: =$C$7+($C$13*-(25-B33)) -> 157.5135 | G33: =$C$8+($C$13*-(25-B33)) -> 133.5135 | H33: =($C$8+($C$13*-(25-B33))-($C$24*D43)) -> 132.223089
A34: 30 | B34: =B35-5 -> 30 | C34: 250 | D34: 53 | E34: 49 | I34: =$C$7+($C$13*-(25-B34)) -> 145.9773 | J34: =$C$8+($C$13*-(25-B34)) -> 121.9773 | K34: =$C$8+($C$13*-(25-B34))-($C$24*D44) -> 120.6661342
A35: 35 | B35: =B36-5 -> 35 | C35: 250 | D35: 53 | E35: 49 | I35: =$C$7+($C$13*-(25-B35)) -> 144.0546 | J35: =$C$8+($C$13*-(25-B35)) -> 120.0546 | K35: =$C$8+($C$13*-(25-B35))-($C$24*D45) -> 118.7399751
A36: 40 | B36: =B37-5 -> 40 | C36: 250 | D36: 53 | E36: 49 | I36: =$C$7+($C$13*-(25-B36)) -> 142.1319 | J36: =$C$8+($C$13*-(25-B36)) -> 118.1319 | K36: =$C$8+($C$13*-(25-B36))-($C$24*D46) -> 116.8138159
A37: 45 | B37: =C5 -> 45 | C37: 250 | D37: 53 | E37: 49 | I37: =$C$7+($C$13*-(25-B37)) -> 140.2092 | J37: =$C$8+($C$13*-(25-B37)) -> 116.2092 | K37: =$C$8+($C$13*-(25-B37))-($C$24*D47) -> 114.8876568
A39: Temperature | C39: Ibat max. | D39: Impp PV max. | E39: System Voltage | F39: Ibat max. @ Impp | G39: Ibat min. @ Impp
A40: =IF(_Temp=1,B40, ((B40)*9/5)+32) -> -15 | B40: =C4 -> -15 | C40: =$E$18 -> 100 | D40: =$C$10+($C$15*-(25-B40)) -> 21.5736 | E40: =$E$20 -> 48 | F40: =IF((((D40*G30)/E40)*$E$21)>$E$18,$E$18,(((D40*G30)/E40)*$E$21)) -> 61.97411397
A41: -10 | B41: =B40+5 -> -10 | C41: =$E$18 -> 100 | D41: =$C$10+($C$15*-(25-B41)) -> 21.6319 | E41: =$E$20 -> 48 | F41: =IF((((D41*G31)/E41)*$E$21)>$E$18,$E$18,(((D41*G31)/E41)*$E$21)) -> 61.28376352
A42: -5 | B42: =B41+5 -> -5 | C42: 100 | D42: 21.6902 | E42: 48 | F42: =IF((((D42*G32)/E42)*$E$21)>$E$18,$E$18,(((D42*G32)/E42)*$E$21)) -> 60.58878922
A43: 0 | B43: =B42+5 -> 0 | C43: 100 | D43: 21.7485 | E43: 48 | F43: =IF((((D43*G33)/E43)*$E$21)>$E$18,$E$18,(((D43*G33)/E43)*$E$21)) -> 59.88919107
A44: 30 | B44: =B45-5 -> 30 | C44: 100 | D44: 22.0983 | E44: 48 | G44: =IF(((D44*J34)/E44*$E$21)>$E$18,$E$18,((D44*J34)/E44*$E$21)) -> 55.59450123
A45: 35 | B45: =B46-5 -> 35 | C45: 100 | D45: 22.1566 | E45: 48 | G45: =IF(((D45*J35)/E45*$E$21)>$E$18,$E$18,((D45*J35)/E45*$E$21)) -> 54.8625361
A46: 40 | B46: =B47-5 -> 40 | C46: 100 | D46: 22.2149 | E46: 48 | G46: =IF(((D46*J36)/E46*$E$21)>$E$18,$E$18,((D46*J36)/E46*$E$21)) -> 54.12594712
A47: 45 | B47: =C5 -> 45 | C47: 100 | D47: 22.2732 | E47: 48 | G47: =IF(((D47*J37)/E47*$E$21)>$E$18,$E$18,((D47*J37)/E47*$E$21)) -> 53.38473429
A49: PV Power ratio | C49: =C16/C21 -> 0.4706896552 | D49: If more than 1.3 the user becomes an alert that he/ she is oversizing the PV generator with more than 30%
A50: Maximum power point PV current is higher than maximum regulator input current | E50: =IF(C10>E19, TRUE, FALSE) -> FALSE

Sheet Language
B1: =IF(MPPT!J3=1,"P"," ") ->  | C1: =IF(MPPT!J3=2,"P"," ") ->  | D1: =IF(MPPT!J3=3,"P"," ") -> P | E1: =IF(MPPT!J3=4,"P"," ") ->  | F1: =IF(MPPT!J3=5,"P"," ") ->  | G1: =IF(MPPT!J3=6,"P"," ") -> 
A2: Pos. | B2: ENGLISH | C2: DUTCH | D2: SLOVENSKY | E2: DEUTSCH | F2: FRANCAIS | G2: PORTUGUÊS
A3: 1 | B3: Module: | C3: Paneel: | D3: Modul: | E3: Modul: | F3: Panneau: | G3: Módulo FV
A4: 2 | B4: In series: | C4: In serie: | D4: Do série: | E4: In Reihe: | F4: En serie: | G4: Em serie:
A5: 3 | B5: Parallel: | C5: Parallel: | D5: Paralelne: | E5: Parallel: | F5: Parallèle: | G5: Em paralelo
A6: 4 | B6: Total PV power @STC: | C6: Totale PV vermogen @STC: | D6: Celkový FV výkon @STC: | E6: PV Leistung insgesamt @STC: | F6: Puissance PV totale @STC: | G6: Potência total FV @STC
A7: 5 | B7: Wp | C7: Wp | D7: Wp | E7: Wp | F7: Wc | G7: Wp
A8: 6 | B8: Module temperature: | C8: Paneel temperatuur: | D8: Teplota modulu: | E8: Modul Temperatur: | F8: Température Paneau: | G8: Temp. módulo FV
A9: 7 | B9: Min. | C9: Min. | D9: Min. | E9: Min. | F9: Min. | G9: Min.
A10: 8 | B10: Max. | C10: Max. | D10: Max. | E10: Max. | F10: Max. | G10: Max.
A11: 9 | B11: Controller: | C11: Regelaar: | D11: Regulátor: | E11: Regler: | F11: Régulateur: | G11: Controlador
A12: 10 | B12: System voltage: | C12: Systeem spanning: | D12: Systémové napätie: | E12: System Spannung: | F12: Tension du système: | G12: Voltagem do sistema
A13: 11 | B13: Max. input voltage | C13: Max. ingangsspanning | D13: Max. vstupné napätie | E13: Max. Eingangspannung: | F13: Tension d'entrée max.: | G13: Voltagem máxima de entrada
A14: 12 | B14: Max. PV voltage @ min. temperature | C14: Max. PV spanning @ min. temp. | D14: Max. FV napätie @ min. teplota | E14: Max. PV Spannung @ min. Temp. | F14: PV tension max. @ temp. min. | G14: Voltagem max FV@Temp min
A15: 13 | B15: Min. input voltage @ MPP | C15: Min. ingangsspanning @ MPP | D15: Min. vstupné napätie @ MPP | E15: Min. Eingangspannung @ MPP | F15: Tension d'entrée min. @ MPP | G15: Voltagem min. de entrada @ MPPT
A16: 14 | B16: Min. PV voltage @ max. temperature | C16: Min. PV spanning @ max. Temp. | D16: Min. FV napätie @ max. teplota | E16: Min. PV Spannung @ max. Temp. | F16: PV tension min. @ temp. max. | G16: Voltagem min. FV @ Temperatura max.
A17: 15 | B17: Max. output current | C17: Max. uitgangsstroom | D17: Max. výstupný prúd | E17: Max. Ausgangstrom | F17: Courant de sortie max. | G17: Corrente max. de saida
A18: 16 | B18: Max. current @ MPP min. temp. | C18: Max. stroom @ MPP min. temp. | D18: Max. prúd @ MPP min. tepl. | E18: Max. Strom @ MPP min. Temp. | F18: Courant max. @ MPP temp. min. | G18: Corrente max. @ MPPT temp. min.
A19: 17 | B19: Max. current @ MPP max. temp. | C19: Max. stroom @ MPP max. temp. | D19: Max. prúd @ MPP max. tepl. | E19: Max. Strom @ MPP max. Temp. | F19: Courant max. @ MPP temp. max. | G19: Corrente max. @ MPPT temp. max.
A20: 18 | B20: Solar module configuration | C20: Zonne-paneel configuratie | D20: Konfigurácia solárneho modulu | E20: Solar Modul Auslegung | F20: Configuration du panneau | G20: Configuração do módulo FV
A21: 19 | B21: Example locations with expected temperatures: | C21: Voorbeeld lokaties en verwachte temperatuur: | D21: Príklady lokalít s očakávanými teplotami: | E21: Beispiel Standort und erwartete Temperatur: | F21: Exemple de localisation de site avec la température attendue: | G21: Exemplos de localização com temperaturas previstas:
A22: 20 | B22: Flat on mobile home, all year (poor ventilation) | C22: Vlak op camper, gehele jaar (slechte ventilatie) | D22: Byt na mobilnom dome, po celý rok (slabé vetranie) | E22: Flach auf Wohnmobil, ganze Jahr (schlechte Hinterlüftung) | F22: À plat sur toit de camping-car toute l'année (mauvaise ventilation) | G22: Num plano reto no motorhome, durante todo o ano (má ventilação)
A23: 21 | B23: Flat on mobile home, only summer (poor ventilation) | C23: Vlak op camper, alleen zomers (slechte ventilatie) | D23: Byt na mobilnom dome, len leto (slabé vetranie) | E23: Flach auf Wohnmobil, nur Sommer (schlechte Hinterlüftung) | F23: À plat sur camping-car , seulement l'été (mauvaise ventilation) | G23: Num plano reto no motorhome, somente no verão (má ventilação)
A24: 22 | B24: Flat on boat (poor ventilation) | C24: Vlak op boot (slechte ventilatie) | D24: Ploché na lodi (slabé vetranie) | E24: Flach auf Boot (schlechte Hinterlüftung) | F24: À plat sur ​​le bateau (mauvaise ventilation) | G24: Num plano reto no barco (má ventilação)
A25: 23 | B25: Pitched on boat (good ventilation) | C25: Onder helling op boot (goede ventilatie) | D25: Naklonené na lodi (dobré vetranie) | E25: Geneigt auf Boot (gute Hinterlüftung) | F25: Inclinée sur bateau (bonne ventilation) | G25: Inclinado no barco (boa ventilação)
A26: 24 | B26: Pitched roof in warm region (good ventilation) | C26: Op schuin dak warme omgeving (goede ventilatie) | D26: Šikmá strecha v teplej oblasti (dobré vetranie) | E26: Schrägdach, warme Umgebung (gute Hinterlüftung) | F26: Toit en pente, en région chaude (bonne ventilation) | G26: Teto inclinado numa região quente (boa ventilação)
A27: 25 | B27: Pitched roof in average region (good ventilation) | C27: Op schuin dak gemiddelde omgeving (goede ventilatie) | D27: Šikmá strecha v priemernej oblasti (dobré vetranie) | E27: Schrägdach, mittlere Regio (gute Hinterlüftung) | F27: Toit en pente, région tempérée (bonne ventilation) | G27: Teto inclinado numa região templada (boa ventilação)
A28: 26 | B28: Pitched roof on mountain (good ventilation) | C28: Op schuin dak in de bergen (goede ventilatie) | D28: Šikmá strecha na kopci (dobré vetranie) | E28: Schrägdach, in Bergen (gute Hinterlüftung) | F28: Toit en pente, en montagne (bonne ventilation) | G28: Teto inclinado nas montanha - frio (boa ventilação)
A29: 27 | B29: * Power limiting @ low temp. | C29: * Vermogens begrenzing @ lage temp. | D29: * Obmedzenie výkonu @ nízka teplota. | E29: * Leistung Begrenzung @ niedrige Temp. | F29: * Limitation de puissance @ basse temp. | G29: * Redução de potência @ Temp. baixa
A30: 28 | B30: ** Power limiting @ high temp. | C30: ** Vermogens begrenzing @ hoge temp. | D30: ** Obmedzenie výkonu @ vysoká teplota. | E30: ** Leistung Begrenzung @ hohe Temp. | F30: ** Limitation de puissance @ haute temp. | G30: ** Redução de potência @ Temp. alta
A31: 29 | B31: Input voltage window string | C31: Ingangspanning venster | D31: Vstupné napätia | E31: Eingangspannungsfenster String | F31: Fourchette de tension | G31: Faixa de voltagem
A32: 30 | B32: Charge current window | C32: Laadstroom venster | D32: Nabíjacie prúdy | E32: Ladestromfenster | F32: Fourchette de courant | G32: Faixa de corrente
A33: 31 | B33: Cable length, Module to MPPT * | C33: Kabel lengte, paneel tot MPPT * | D33: Dĺžka kábla, modul k MPPT * | E33: Kabel Länge, Modul zum MPPT * | F33: Longueur cable, Paneaux à MPPT * | G33: Comprimento do cabo entre o modulo e o MPPT *
A34: 32 | B34: Cross-section: | C34: Doorsnede: | D34: Prierez: | E34: Querschnitt: | F34: Section: | G34: Corte transversal:
A35: 33 | B35: * One way length | C35: * Enkele afstand | D35: * Jednosmerná dĺžka | E35: * Einfache Distanz | F35: * La distance simple | G35: * Distância de um só cabo
A36: 34 | B36: Are the solar modules covered with snow many periods a year? | C36: Zijn de panelen gedurende veel periodes bedekt met sneeuw? | D36: Sú solárne moduly pokryté snehom väčšinu obdobia v roku? | E36: Sind die Solar Module öfters im Jahr bedeckt mit Schnee? | F36: Les panneaux PV sont-ils souvent couverts de neige ? | G36: ¿Vai cair neve nos modulos ?
A37: 35 | B37: Yes | C37: Ja | D37: Áno | E37: Ja | F37: Oui | G37: Sim
A38: 36 | B38: No | C38: Nee | D38: Nie | E38: Nein | F38: Non | G38: Não
A39: 37 | B39: Accepted | C39: Toegestaan | D39: Vyhovujúci | E39: Erlaubt | F39: Accepté | G39: Aceito
A40: 38 | B40: NOT accepted | C40: NIET toegestaan | D40: Nevyhovujúci | E40: NICHT erlaubt | F40: PAS accepté | G40: NÃO aceito
A41: 39 | B41: Attention: More than 30% oversized PV generator | C41: Attentie: Meer dan 30% overgedimensioneerde PV generator | D41: Pozor: Viac ako 30% predimenzovaný FV generátor | E41: Achtung: Mehr als 30% überdimensionierte PV Generator | F41: Attention, surdimensionnement PV supérieur à 30% ! Non recommandé financièrement ! | G41: Nota: existe sobredimensionamento do gerador FV de mais do 30%
A42: 40 | B42: Coefficient support: | C42: Koefficient berekening: | D42: Koeficientová podpora: | E42: Koeffizientenberechnung: | F42: Coefficients de température: | G42: Calculo do coeficiente de temperatura | IIF42: 1
A43: 41 | B43: If you have the voltage temperature coefficient in mV/°C, here is how to change it to %/°C | C43: Hier kunt U de spanning koeffizient van mV/°C naar %/°C omrekenen | D43: Ak máte teplotný koeficient napätia v mV/°C, tu je návod, ako ho zmeniť na %/°C | E43: Hier können Sie die Spannungskoeffizient von mV/°C in %/°C wandeln | F43: Si vous avez le Coefficient de température à tension de circuit ouvert en mV/°C , voici comment changer ce coefficient en %/°C | G43: Caso tiver o coeficiente de temperatura de voltagem em mV/°C, pode ser trocado para %/°C
A44: 42 | B44: Write the Voc value in Volt: | C44: Schrijf hier de Voc waarde in Volt: | D44: Napíšte hodnotu Voc vo voltoch: | E44: Schreiben Sie den Voc Wert in Volt: | F44: Ecrire la valeur de la VOC en Volt: | G44: Escreve o valor do Voc (voltagem do circuito abierto) em volts
A45: 43 | B45: Write the coefficient value in mV/°C: | C45: Schrijf hier de koefficient waarde in mV/°C: | D45: Napíšte hodnotu koeficientu v mV/°C: | E45: Schreiben Sie den Koeffizient Wert in mV/°C: | F45: Ecrire la valeur du coefficient en mV/°C: | G45: Escreve o valor do coeficiente em mV/°C:
A46: 44 | B46: The coefficent value in %/°C is now: | C46: De berekende koefficient in %/°C is nu: | D46: Hodnota koeficientu v %/°C je teraz: | E46: Der errechneter Koeffizient in %/°C ist jetzt: | F46: La valeur du coefficient en %/°C est de: | G46: O valor do coeficiente en %/°C agora:
A47: 45 | B47: If you have the current temperature coefficient in mA/°C, here is how to change it to %/°C | C47: Hier kunt U de stroom koeffizient van mA/°C naar %/°C omrekenen | D47: Ak máte aktuálny teplotný koeficient v mA/°C, tu je návod, ako ho zmeniť na %/°C | E47: Hier können Sie die Stromkoeffizient von mA/°C in %/°C wandeln | F47: Si vous avez le Coefficient de température à Courant de Court-Cicuit en mA/°C, voici comment changer ce coefficient en %/°C | G47: Se tem o coeficiente de temperatura atual em mA/°C, pode ser trocado para %/°C
A48: 46 | B48: Write the Isc value in Ampere: | C48: Schrijf hier de Isc waarde in Ampere: | D48: Napíšte hodnotu Isc v ampéroch: | E48: Schreiben Sie den Isc Wert in Ampere: | F48: Ecrire la valeur de Isc en Ampère: | G48: Escreve o valor do Isc (corrente de curtocircuito) em ampers
A49: 47 | B49: Write the coefficient value in mA/°C: | C49: Schrijf hier de koefficient waarde in mA/°C: | D49: Napíšte hodnotu koeficientu v mA/°C: | E49: Schreiben Sie den Koeffizient Wert in mA/°C: | F49: Ecrire la valeur du coefficient en mA/°C: | G49: Escreve o valor do coeficiente em mA/°C:
A50: 48 | B50: The coefficent value in %/°C is now: | C50: De berekende koefficient in %/°C is nu: | D50: Hodnota koeficientu v %/°C je teraz: | E50: Der errechneter Koeffizient in %/°C ist jetzt: | F50: La valeur du coefficient en %/°C est de : | G50: O coeficiente em %/°C :
A51: 49 | B51: Warning: PV current is higher than MPPT max. input current | C51: Waarschuwing: PV stroom is hoger dan max. ingangstroom MPPT | D51: Upozornenie: FV prúd je vyšší ako MPPT max. vstupný prúd | E51: Warnung: PV Strom ist höher als max. erlaubter Eingangstrom MPPT | F51: Attention! Le courant PV est supérieur au courant d’entrée maximum du MPPT | G51: Cuidado: A corrente FV é superior à máxima corrente de entrada do MPPT
A52: 50 | B52: Max. total output current | C52: Max. totale uitgangsstroom | D52: Max. celkový výstupný prúd | E52: Max. totale Ausgangstrom | F52: Courant de sortie total max | G52: Corrente saída máxima
A53: 51 | B53: Max. total current @ MPP min. temp. | C53: Max. totale stroom @ MPP min. temp. | D53: Max. celkový prúd @ MPP min. tepl. | E53: Max. totale Strom @ MPP min. Temp. | F53: Courant max total @ MPP temp. min. | G53: Máx. corrente total @ MPP temp. min.
A54: 52 | B54: Max. total current @ MPP max. temp. | C54: Max. totale stroom @ MPP max. temp. | D54: Max. celkový prúd @ MPP max. tepl. | E54: Max. totale Strom @ MPP max. Temp. | F54: Courant max total @ MPP temp. max. | G54: Máx. corrente total @ MPP temp. máx.
A55: 53 | B55: Battery float voltage | C55: Accu float spanning | D55: Plavákové napätie batérie | E55: Batterie Float Spannung | F55: Tension de batterie float | G55: Tensão de flutuação da bateria
A56: 54 | B56: Warning: charge power is reduced to max MPPT Tracker power | C56: Waarschuwing: laadvermogen wordt reduceerd tot max MPPT tracker vermogen | D56: Upozornenie: Nabíjací výkon je znížený na maximálny výkon MPPT Tracker | E56: Warnung: ladeleistung wird auf max MPPT Tracker Leistung reduziert | F56: Attention : puissance de charge réduite à la puissance de tracker MPPT max. | G56: Atenção, a potência de carga é reduzida ao valor máximo de saída do seguidor do ponto de potência máxima
A57: 55 | B57: PV string power @STC | C57: PV string vermogen @STC | D57: Výkon PV reťazca @STC | E57: PV Stringleistung @STC | F57: Puissance de chaine PV @ STC | G57: Potência da série fotovoltaica @STC
A58: 56 | B58: String Voc max. | C58: Snaar Voc max. | D58: Rad Voc max. | E58: Schnur Voc max. | F58: String Voc max. | G58: Corda Voc max.
A59: 57 | B59: String Vmpp corr. min. | C59: Snaar Vmpp corr. min. | D59: Rad Vmpp corr. min. | E59: Schnur Vmpp corr. min. | F59: String Vmpp corr. min. | G59: Corda Vmpp corr. min.
A60: 58 | B60: Vmpp RUN min. | C60: Vmpp RUN min. | D60: Vmpp RUN min. | E60: Vmpp RUN min. | F60: Vmpp RUN min. | G60: Vmpp RUN min.
A61: 59 | B61: String Vmpp corr.max. | C61: Snaar Vmpp corr.max. | D61: Rad Vmpp corr.max. | E61: Schnur Vmpp corr.max. | F61: String Vmpp corr.max. | G61: Corda Vmpp corr.max.
A62: 60 | B62: Voc max. | C62: Voc max. | D62: Voc max. | E62: Voc max. | F62: Voc max. | G62: Voc max.
A63: 61 | B63: String Voc min. | C63: Snaar Voc min. | D63: Rad Voc min. | E63: Schnur Voc min. | F63: String Voc min. | G63: Corda Voc min.
A64: 62 | B64: Voc START min. | C64: Voc START min. | D64: Voc START min. | E64: Voc START min. | F64: Voc START min. | G64: Voc START min.
A65: 63 | B65: Print the CHART as an image | C65: Druk de KAART af als afbeelding | D65: Vytlačiť GRAF ako obrázok | E65: Drucken Sie das DIAGRAMM als Bild aus | F65: Imprimer le TABLEAU sous forme d'image | G65: Imprima o GRÁFICO como uma imagem
A66: 64 | B66: Number of modules | C66: Aantal modules | D66: Počet modulov | E66: Anzahl der Module | F66: Nombre de modules | G66: Número de módulos
A67: 65 | B67: Table of values | C67: Tabel met waarden | D67: Tabuľka hodnôt | E67: Wertetabelle | F67: Tableau des valeurs | G67: Tabela de valores
A68: 66 | B68: Temperature | C68: Temperatuur | D68: Teplota | E68: Temperatur | F68: Température | G68: Temperatura
A69: 67 | B69: Blue- & SmartSolar MPPT charge controller | C69: Blue- & SmartSolar MPPT laadregelaar | D69: Regulátor nabíjania Blue- & SmartSolar MPPT | E69: Blue- & SmartSolar MPPT Laderegler | F69: Régulateur de charge Blue- & SmartSolar MPPT | G69: Controlador de carga Blue- & SmartSolar MPPT
A70: 68 | B70: Dark mode | C70: Donkere modus | D70: Tmavý režim | E70: Dunkler Modus | F70: Mode sombre | G70: Modo escuro
